[Event "Late Titled Tuesday Blitz February 8 2022"]
[White "Kopylov, Alexander A."]
[Black "Shevchenko, Kirill"]
[WhiteFideId "4164857"]
[BlackFideId "14129574"]
[WhiteElo "2436"]
[BlackElo "2624"]
[Result "0-1"]
[Round "04"]
[TimeControl "180+1"]
[Date "2022.02.08"]
[WhiteClock "0:00:13"]
[BlackClock "0:00:13"]

1. e4 {[%clk 0:03:00]}  c5 {[%clk 0:02:55]} 2. Nf3 {[%clk 0:03:00]}  Nc6 {[%clk 0:02:56]} 3. d4 {[%clk 0:02:58]}  cxd4 {[%clk 0:02:56]} 4. Nxd4 {[%clk 0:02:58]}  Nf6 {[%clk 0:02:56]} 5. Nc3 {[%clk 0:02:58]}  d6 {[%clk 0:02:57]} 6. Be2 {[%clk 0:02:58]}  e5 {[%clk 0:02:57]} 7. Nf3 {[%clk 0:02:58]}  h6 {[%clk 0:02:57]} 8. O-O {[%clk 0:02:58]}  Be7 {[%clk 0:02:57]} 9. h3 {[%clk 0:02:58]}  O-O {[%clk 0:02:58]} 10. Re1 {[%clk 0:02:58]}  Be6 {[%clk 0:02:58]} 11. Bf1 {[%clk 0:02:58]}  Qa5 {[%clk 0:02:56]} 12. Bd2 {[%clk 0:02:57]}  Qd8 {[%clk 0:02:56]} 13. Bc1 {[%clk 0:02:57]}  a6 {[%clk 0:02:41]} 14. b3 {[%clk 0:02:57]}  Rc8 {[%clk 0:02:26]} 15. Bb2 {[%clk 0:02:57]}  Qa5 {[%clk 0:02:23]} 16. a3 {[%clk 0:02:56]}  Nb8 {[%clk 0:02:16]} 17. b4 {[%clk 0:02:54]}  Qc7 {[%clk 0:02:16]} 18. Rc1 {[%clk 0:02:44]}  Bc4 {[%clk 0:02:01]} 19. Nd5 {[%clk 0:02:36]}  Nxd5 {[%clk 0:02:00]} 20. exd5 {[%clk 0:02:37]}  Nd7 {[%clk 0:01:53]} 21. Nd2 {[%clk 0:01:28]}  Nb6 {[%clk 0:01:49]} 22. Nxc4 {[%clk 0:01:18]}  Nxc4 {[%clk 0:01:48]} 23. Ba1 {[%clk 0:01:18]}  Bg5 {[%clk 0:01:44]} 24. Rb1 {[%clk 0:01:04]}  Nxa3 {[%clk 0:01:43]} 25. Rb3 {[%clk 0:01:04]}  Nxc2 {[%clk 0:01:28]} 26. Rc3 {[%clk 0:01:03]}  Nxe1 {[%clk 0:01:28]} 27. Rxc7 {[%clk 0:01:02]}  Rxc7 {[%clk 0:01:29]} 28. Bb2 {[%clk 0:00:50]}  Nc2 {[%clk 0:01:25]} 29. h4 {[%clk 0:00:48]}  Be7 {[%clk 0:01:20]} 30. Qg4 {[%clk 0:00:42]}  f5 {[%clk 0:01:15]} 31. Qg6 {[%clk 0:00:41]}  Rf6 {[%clk 0:01:09]} 32. Qe8+ {[%clk 0:00:41]}  Bf8 {[%clk 0:01:09]} 33. b5 {[%clk 0:00:35]}  Nd4 {[%clk 0:00:51]} 34. bxa6 {[%clk 0:00:31]}  bxa6 {[%clk 0:00:51]} 35. Bxa6 {[%clk 0:00:31]}  Kh7 {[%clk 0:00:43]} 36. Bc8 {[%clk 0:00:30]}  Re7 {[%clk 0:00:40]} 37. Qd8 {[%clk 0:00:30]}  h5 {[%clk 0:00:22]} 38. Ba3 {[%clk 0:00:22]}  Ra7 {[%clk 0:00:22]} 39. Bb2 {[%clk 0:00:19]}  Be7 {[%clk 0:00:22]} 40. Qe8 {[%clk 0:00:19]}  g6 {[%clk 0:00:22]} 41. Bxd4 {[%clk 0:00:17]}  exd4 {[%clk 0:00:22]} 42. Be6 {[%clk 0:00:17]}  Bf8 {[%clk 0:00:23]} 43. Qb8 {[%clk 0:00:16]}  Re7 {[%clk 0:00:16]} 44. Qb4 {[%clk 0:00:16]}  Bg7 {[%clk 0:00:14]} 45. Qxd6 {[%clk 0:00:15]}  Ra7 {[%clk 0:00:13]} 46. Qc5 {[%clk 0:00:15]}  Ra1+ {[%clk 0:00:13]} 47. Kh2 {[%clk 0:00:15]}  d3 {[%clk 0:00:13]} 48. Qc3 {[%clk 0:00:13]}  Rxe6 {[%clk 0:00:13]} 49. Qxd3 {[%clk 0:00:13]}  Rd6 {[%clk 0:00:13]} 0-1


[Site "https://www.chess.com"]

[Event "Late Titled Tuesday Blitz February 8 2022"]
[White "Kosakowski, Jakub"]
[Black "Al-Tarboush, Ward"]
[WhiteFideId "1185080"]
[BlackFideId "7601450"]
[WhiteElo "2780"]
[BlackElo "2563"]
[Result "1-0"]
[Round "04"]
[TimeControl "180+1"]
[Date "2022.02.09"]
[WhiteClock "0:00:11"]
[BlackClock "0:00:01"]

1. e4 {[%clk 0:02:56]}  b6 {[%clk 0:03:00]} 2. d4 {[%clk 0:02:56]}  Bb7 {[%clk 0:03:01]} 3. Bd3 {[%clk 0:02:57]}  e6 {[%clk 0:03:01]} 4. Nf3 {[%clk 0:02:57]}  c5 {[%clk 0:03:01]} 5. c3 {[%clk 0:02:56]}  Nf6 {[%clk 0:03:02]} 6. Qe2 {[%clk 0:02:55]}  Be7 {[%clk 0:03:01]} 7. e5 {[%clk 0:02:34]}  Nd5 {[%clk 0:02:57]} 8. c4 {[%clk 0:02:32]}  Nc7 {[%clk 0:02:30]} 9. dxc5 {[%clk 0:02:25]}  bxc5 {[%clk 0:02:29]} 10. Nc3 {[%clk 0:02:20]}  Nc6 {[%clk 0:02:29]} 11. O-O {[%clk 0:02:19]}  f5 {[%clk 0:02:26]} 12. exf6 {[%clk 0:02:03]}  Bxf6 {[%clk 0:02:26]} 13. Ne4 {[%clk 0:01:57]}  Qe7 {[%clk 0:02:26]} 14. Bf4 {[%clk 0:01:55]}  e5 {[%clk 0:02:21]} 15. Bg3 {[%clk 0:01:38]}  Ne6 {[%clk 0:02:20]} 16. Rfe1 {[%clk 0:01:30]}  d6 {[%clk 0:02:04]} 17. Nc3 {[%clk 0:01:21]}  Ncd4 {[%clk 0:02:03]} 18. Nxd4 {[%clk 0:01:21]}  Nxd4 {[%clk 0:02:04]} 19. Qd1 {[%clk 0:01:17]}  O-O {[%clk 0:02:00]} 20. Be4 {[%clk 0:01:17]}  Bg5 {[%clk 0:01:52]} 21. Qd3 {[%clk 0:01:13]}  Bxe4 {[%clk 0:01:49]} 22. Rxe4 {[%clk 0:01:14]}  Qf7 {[%clk 0:01:47]} 23. f3 {[%clk 0:01:12]}  Rab8 {[%clk 0:01:47]} 24. b3 {[%clk 0:01:12]}  a6 {[%clk 0:01:27]} 25. Rae1 {[%clk 0:01:09]}  Qf5 {[%clk 0:01:16]} 26. Nd5 {[%clk 0:01:06]}  Kh8 {[%clk 0:01:15]} 27. Qd1 {[%clk 0:00:58]}  a5 {[%clk 0:01:14]} 28. f4 {[%clk 0:00:57]}  exf4 {[%clk 0:01:11]} 29. Bxf4 {[%clk 0:00:58]}  a4 {[%clk 0:01:07]} 30. Bxd6 {[%clk 0:00:42]}  Qf2+ {[%clk 0:00:20]} 31. Kh1 {[%clk 0:00:41]}  axb3 {[%clk 0:00:18]} 32. axb3 {[%clk 0:00:41]}  h6 {[%clk 0:00:10]} 33. Bxb8 {[%clk 0:00:39]}  Rxb8 {[%clk 0:00:10]} 34. Re8+ {[%clk 0:00:30]}  Rxe8 {[%clk 0:00:09]} 35. Rxe8+ {[%clk 0:00:31]}  Kh7 {[%clk 0:00:10]} 36. Qd3+ {[%clk 0:00:31]}  g6 {[%clk 0:00:10]} 37. Qd1 {[%clk 0:00:22]}  h5 {[%clk 0:00:09]} 38. Rb8 {[%clk 0:00:18]}  Ne2 {[%clk 0:00:07]} 39. Rb7+ {[%clk 0:00:17]}  Kh6 {[%clk 0:00:07]} 40. Ne7 {[%clk 0:00:15]}  Bxe7 {[%clk 0:00:06]} 41. Rxe7 {[%clk 0:00:15]}  Nf4 {[%clk 0:00:06]} 42. Qg1 {[%clk 0:00:13]}  Qc2 {[%clk 0:00:03]} 43. Re3 {[%clk 0:00:11]}  Nd3 {[%clk 0:00:02]} 44. Rf3 {[%clk 0:00:11]}  Qe2 {[%clk 0:00:01]} 45. Qe3+ {[%clk 0:00:11]} 1-0


[Site "https://www.chess.com"]

[Event "Late Titled Tuesday Blitz February 8 2022"]
[White "Kosteniuk, Alexandra"]
[Black "Migot, Tangi"]
[WhiteFideId "4128125"]
[BlackFideId "662445"]
[WhiteElo "2469"]
[BlackElo "2546"]
[Result "1-0"]
[Round "04"]
[TimeControl "180+1"]
[Date "2022.02.09"]
[WhiteClock "0:00:15"]
[BlackClock "0:00:24"]

1. Nf3 {[%clk 0:03:00]}  c5 {[%clk 0:03:00]} 2. e4 {[%clk 0:02:59]}  b6 {[%clk 0:03:00]} 3. d4 {[%clk 0:02:57]}  cxd4 {[%clk 0:03:00]} 4. Nxd4 {[%clk 0:02:57]}  Bb7 {[%clk 0:03:01]} 5. Bd3 {[%clk 0:02:56]}  e6 {[%clk 0:03:01]} 6. O-O {[%clk 0:02:55]}  a6 {[%clk 0:02:58]} 7. c4 {[%clk 0:02:54]}  Qc7 {[%clk 0:02:58]} 8. Nc3 {[%clk 0:02:53]}  Nf6 {[%clk 0:02:58]} 9. f4 {[%clk 0:02:40]}  Bc5 {[%clk 0:02:56]} 10. Be3 {[%clk 0:02:39]}  Nc6 {[%clk 0:02:54]} 11. Nc2 {[%clk 0:02:14]}  h5 {[%clk 0:02:35]} 12. Bxc5 {[%clk 0:02:06]}  bxc5 {[%clk 0:02:35]} 13. e5 {[%clk 0:02:05]}  Ng4 {[%clk 0:02:35]} 14. h3 {[%clk 0:02:05]}  Nh6 {[%clk 0:02:29]} 15. Qxh5 {[%clk 0:02:00]}  O-O-O {[%clk 0:02:28]} 16. Qe2 {[%clk 0:01:52]}  Nf5 {[%clk 0:02:22]} 17. Bxf5 {[%clk 0:01:52]}  Nd4 {[%clk 0:02:20]} 18. Nxd4 {[%clk 0:01:49]}  cxd4 {[%clk 0:02:20]} 19. Ne4 {[%clk 0:01:48]}  exf5 {[%clk 0:02:18]} 20. Nd6+ {[%clk 0:01:48]}  Kb8 {[%clk 0:02:17]} 21. Nxf7 {[%clk 0:01:33]}  d5 {[%clk 0:02:15]} 22. Nxh8 {[%clk 0:01:25]}  Rxh8 {[%clk 0:02:16]} 23. cxd5 {[%clk 0:01:24]}  Qc5 {[%clk 0:02:16]} 24. Rac1 {[%clk 0:01:16]}  Qxd5 {[%clk 0:02:13]} 25. e6 {[%clk 0:01:13]}  Ka8 {[%clk 0:02:08]} 26. e7 {[%clk 0:01:12]}  Re8 {[%clk 0:02:07]} 27. Rf3 {[%clk 0:01:08]}  Qd6 {[%clk 0:01:57]} 28. Re1 {[%clk 0:01:07]}  Bxf3 {[%clk 0:01:51]} 29. Qxf3+ {[%clk 0:01:07]}  Ka7 {[%clk 0:01:51]} 30. Qa3 {[%clk 0:00:42]}  Qxa3 {[%clk 0:01:10]} 31. bxa3 {[%clk 0:00:42]}  Kb6 {[%clk 0:01:11]} 32. Kf2 {[%clk 0:00:41]}  Kc5 {[%clk 0:01:11]} 33. Re5+ {[%clk 0:00:38]}  Kc4 {[%clk 0:01:11]} 34. Ke2 {[%clk 0:00:37]}  Kc3 {[%clk 0:01:00]} 35. a4 {[%clk 0:00:36]}  a5 {[%clk 0:00:56]} 36. g4 {[%clk 0:00:27]}  fxg4 {[%clk 0:00:55]} 37. hxg4 {[%clk 0:00:27]}  d3+ {[%clk 0:00:49]} 38. Kd1 {[%clk 0:00:27]}  Kd4 {[%clk 0:00:43]} 39. g5 {[%clk 0:00:22]}  Kc3 {[%clk 0:00:43]} 40. a3 {[%clk 0:00:19]}  Rb8 {[%clk 0:00:40]} 41. Rb5 {[%clk 0:00:16]}  Rh8 {[%clk 0:00:35]} 42. Rc5+ {[%clk 0:00:15]}  Kd4 {[%clk 0:00:34]} 43. Re5 {[%clk 0:00:14]}  Re8 {[%clk 0:00:29]} 44. Kd2 {[%clk 0:00:14]}  g6 {[%clk 0:00:28]} 45. Re6 {[%clk 0:00:14]}  Kd5 {[%clk 0:00:25]} 46. Re3 {[%clk 0:00:14]}  Kc4 {[%clk 0:00:25]} 47. Re4+ {[%clk 0:00:15]}  Kb3 {[%clk 0:00:24]} 48. Kxd3 {[%clk 0:00:15]}  Kxa3 {[%clk 0:00:24]} 49. Ke3 {[%clk 0:00:14]}  Kb3 {[%clk 0:00:24]} 50. Kf3 {[%clk 0:00:15]} 1-0


[Site "https://www.chess.com"]

[Event "Late Titled Tuesday Blitz February 8 2022"]
[White "Kravtsiv, Martyn"]
[Black "Sarana, Alexey"]
[WhiteFideId "14113147"]
[BlackFideId "24133795"]
[WhiteElo "2694"]
[BlackElo "2665"]
[Result "1/2-1/2"]
[Round "04"]
[TimeControl "180+1"]
[Date "2022.02.08"]
[WhiteClock "0:00:09"]
[BlackClock "0:00:24"]

1. e4 {[%clk 0:03:00]}  c5 {[%clk 0:03:00]} 2. Nf3 {[%clk 0:03:01]}  d6 {[%clk 0:03:01]} 3. Bb5+ {[%clk 0:03:00]}  Bd7 {[%clk 0:03:00]} 4. Bxd7+ {[%clk 0:03:00]}  Nxd7 {[%clk 0:03:01]} 5. O-O {[%clk 0:02:59]}  e6 {[%clk 0:02:59]} 6. b3 {[%clk 0:02:57]}  Be7 {[%clk 0:02:59]} 7. Bb2 {[%clk 0:02:57]}  Bf6 {[%clk 0:03:00]} 8. d4 {[%clk 0:02:55]}  cxd4 {[%clk 0:02:57]} 9. Bxd4 {[%clk 0:02:54]}  Ne7 {[%clk 0:02:56]} 10. c4 {[%clk 0:02:50]}  O-O {[%clk 0:02:53]} 11. Nc3 {[%clk 0:02:49]}  a6 {[%clk 0:02:53]} 12. Rc1 {[%clk 0:02:43]}  Rc8 {[%clk 0:02:52]} 13. Bxf6 {[%clk 0:02:31]}  Nxf6 {[%clk 0:02:52]} 14. Qd3 {[%clk 0:02:31]}  Qb6 {[%clk 0:02:49]} 15. Rfd1 {[%clk 0:02:28]}  Rfd8 {[%clk 0:02:50]} 16. h3 {[%clk 0:02:28]}  Nc6 {[%clk 0:02:48]} 17. Rd2 {[%clk 0:02:11]}  Nd7 {[%clk 0:02:44]} 18. Rcd1 {[%clk 0:02:09]}  Nde5 {[%clk 0:02:43]} 19. Qe2 {[%clk 0:02:09]}  Qb4 {[%clk 0:02:41]} 20. Qe3 {[%clk 0:02:02]}  b5 {[%clk 0:02:28]} 21. cxb5 {[%clk 0:01:43]}  Nxf3+ {[%clk 0:02:27]} 22. gxf3 {[%clk 0:01:43]}  Ne5 {[%clk 0:02:11]} 23. Ne2 {[%clk 0:01:37]}  axb5 {[%clk 0:02:11]} 24. f4 {[%clk 0:01:34]}  Ng6 {[%clk 0:02:10]} 25. Kh2 {[%clk 0:01:20]}  Ne7 {[%clk 0:02:04]} 26. Ng3 {[%clk 0:01:15]}  d5 {[%clk 0:02:02]} 27. f5 {[%clk 0:01:15]}  Rc3 {[%clk 0:01:48]} 28. Qb6 {[%clk 0:01:03]}  Qd6 {[%clk 0:01:23]} 29. Qxd6 {[%clk 0:00:54]}  Rxd6 {[%clk 0:01:24]} 30. exd5 {[%clk 0:00:50]}  Rxd5 {[%clk 0:01:25]} 31. Ne4 {[%clk 0:00:42]}  Rc6 {[%clk 0:01:18]} 32. f6 {[%clk 0:00:42]}  Ng6 {[%clk 0:00:35]} 33. Rxd5 {[%clk 0:00:42]}  exd5 {[%clk 0:00:36]} 34. Rxd5 {[%clk 0:00:41]}  Rc2 {[%clk 0:00:33]} 35. Rxb5 {[%clk 0:00:37]}  Rxa2 {[%clk 0:00:31]} 36. Rb8+ {[%clk 0:00:36]}  Nf8 {[%clk 0:00:31]} 37. b4 {[%clk 0:00:27]}  Rb2 {[%clk 0:00:25]} 38. Kg2 {[%clk 0:00:23]}  gxf6 {[%clk 0:00:24]} 39. Nxf6+ {[%clk 0:00:23]}  Kg7 {[%clk 0:00:24]} 40. Nh5+ {[%clk 0:00:22]}  Kg6 {[%clk 0:00:22]} 41. Rxf8 {[%clk 0:00:19]}  Kxh5 {[%clk 0:00:22]} 42. Rxf7 {[%clk 0:00:19]}  Rxb4 {[%clk 0:00:22]} 43. Rxh7+ {[%clk 0:00:19]}  Kg6 {[%clk 0:00:23]} 44. Rd7 {[%clk 0:00:19]}  Ra4 {[%clk 0:00:23]} 45. Rd3 {[%clk 0:00:19]}  Kg5 {[%clk 0:00:23]} 46. Rg3+ {[%clk 0:00:20]}  Kf5 {[%clk 0:00:24]} 47. Rf3+ {[%clk 0:00:19]}  Kg5 {[%clk 0:00:24]} 48. Kg3 {[%clk 0:00:19]}  Rb4 {[%clk 0:00:24]} 49. Re3 {[%clk 0:00:19]}  Rb1 {[%clk 0:00:24]} 50. Re5+ {[%clk 0:00:19]}  Kf6 {[%clk 0:00:24]} 51. Rc5 {[%clk 0:00:18]}  Rg1+ {[%clk 0:00:23]} 52. Kf3 {[%clk 0:00:18]}  Rh1 {[%clk 0:00:24]} 53. Kg2 {[%clk 0:00:18]}  Ra1 {[%clk 0:00:23]} 54. h4 {[%clk 0:00:18]}  Kg6 {[%clk 0:00:24]} 55. f3 {[%clk 0:00:16]}  Rb1 {[%clk 0:00:23]} 56. Rg5+ {[%clk 0:00:14]}  Kf6 {[%clk 0:00:23]} 57. Kg3 {[%clk 0:00:14]}  Rg1+ {[%clk 0:00:24]} 58. Kf4 {[%clk 0:00:14]}  Rh1 {[%clk 0:00:24]} 59. Rg4 {[%clk 0:00:14]}  Rh2 {[%clk 0:00:24]} 60. Kg3 {[%clk 0:00:14]}  Rh1 {[%clk 0:00:25]} 61. Kg2 {[%clk 0:00:14]}  Re1 {[%clk 0:00:25]} 62. Kf2 {[%clk 0:00:11]}  Rh1 {[%clk 0:00:25]} 63. Kg3 {[%clk 0:00:12]}  Rg1+ {[%clk 0:00:25]} 64. Kh2 {[%clk 0:00:11]}  Rf1 {[%clk 0:00:25]} 65. Kg2 {[%clk 0:00:11]}  Ra1 {[%clk 0:00:25]} 66. Rg5 {[%clk 0:00:11]}  Rb1 {[%clk 0:00:24]} 67. Kg3 {[%clk 0:00:11]}  Rg1+ {[%clk 0:00:23]} 68. Kf4 {[%clk 0:00:11]}  Rh1 {[%clk 0:00:24]} 69. Kg4 {[%clk 0:00:11]}  Rg1+ {[%clk 0:00:23]} 70. Kh5 {[%clk 0:00:11]}  Rf1 {[%clk 0:00:24]} 71. Rg3 {[%clk 0:00:12]}  Kf5 {[%clk 0:00:24]} 72. Kh6 {[%clk 0:00:11]}  Kf6 {[%clk 0:00:25]} 73. h5 {[%clk 0:00:11]}  Rf2 {[%clk 0:00:25]} 74. Kh7 {[%clk 0:00:11]}  Kf7 {[%clk 0:00:25]} 75. h6 {[%clk 0:00:11]}  Rf1 {[%clk 0:00:24]} 76. Kh8 {[%clk 0:00:10]}  Kf8 {[%clk 0:00:24]} 77. Kh7 {[%clk 0:00:09]}  Kf7 {[%clk 0:00:24]} 78. Rg7+ {[%clk 0:00:09]}  Kf8 {[%clk 0:00:24]} 79. Rg3 {[%clk 0:00:09]}  Kf7 {[%clk 0:00:24]} 1/2-1/2


[Site "https://www.chess.com"]

[Event "Late Titled Tuesday Blitz February 8 2022"]
[White "Krsnik Cohar, Ivan Vihor"]
[Black "Sevian, Samuel"]
[WhiteFideId "14520044"]
[BlackFideId "2040506"]
[WhiteElo "2414"]
[BlackElo "2698"]
[Result "0-1"]
[Round "04"]
[TimeControl "180+1"]
[Date "2022.02.08"]
[WhiteClock "0:00:01"]
[BlackClock "0:00:44"]

1. d4 {[%clk 0:03:00]}  Nf6 {[%clk 0:02:46]} 2. Bg5 {[%clk 0:03:00]}  c5 {[%clk 0:02:44]} 3. d5 {[%clk 0:03:00]}  Qb6 {[%clk 0:02:44]} 4. Nc3 {[%clk 0:03:01]}  Qxb2 {[%clk 0:02:45]} 5. Bd2 {[%clk 0:03:01]}  Qb6 {[%clk 0:02:45]} 6. e4 {[%clk 0:03:02]}  d6 {[%clk 0:02:45]} 7. f4 {[%clk 0:03:02]}  g6 {[%clk 0:02:44]} 8. Nf3 {[%clk 0:03:01]}  Bg7 {[%clk 0:02:43]} 9. Rb1 {[%clk 0:03:01]}  Qd8 {[%clk 0:02:43]} 10. e5 {[%clk 0:03:01]}  Nfd7 {[%clk 0:02:42]} 11. e6 {[%clk 0:03:00]}  fxe6 {[%clk 0:02:43]} 12. dxe6 {[%clk 0:03:01]}  Nf6 {[%clk 0:02:44]} 13. Ng5 {[%clk 0:02:59]}  O-O {[%clk 0:02:44]} 14. Bd3 {[%clk 0:02:40]}  d5 {[%clk 0:02:42]} 15. Nf7 {[%clk 0:01:48]}  Qc7 {[%clk 0:02:37]} 16. Nb5 {[%clk 0:01:48]}  Qc6 {[%clk 0:02:37]} 17. Ne5 {[%clk 0:01:45]}  Qb6 {[%clk 0:02:33]} 18. Nd4 {[%clk 0:01:36]}  Qd8 {[%clk 0:02:31]} 19. Nf7 {[%clk 0:01:35]}  Qc7 {[%clk 0:02:30]} 20. Nb5 {[%clk 0:01:32]}  Qc6 {[%clk 0:02:30]} 21. Ne5 {[%clk 0:01:32]}  Qb6 {[%clk 0:02:30]} 22. Nd4 {[%clk 0:01:32]}  Qd8 {[%clk 0:02:30]} 23. Nf7 {[%clk 0:01:31]}  Qe8 {[%clk 0:02:31]} 24. Nb5 {[%clk 0:01:17]}  Na6 {[%clk 0:02:30]} 25. Ng5 {[%clk 0:00:48]}  c4 {[%clk 0:02:29]} 26. Be2 {[%clk 0:00:43]}  h6 {[%clk 0:02:29]} 27. Nf3 {[%clk 0:00:43]}  Bxe6 {[%clk 0:02:29]} 28. Nbd4 {[%clk 0:00:42]}  Bg4 {[%clk 0:02:29]} 29. Rxb7 {[%clk 0:00:41]}  Ne4 {[%clk 0:02:29]} 30. Ne5 {[%clk 0:00:30]}  Bxe2 {[%clk 0:02:26]} 31. Qxe2 {[%clk 0:00:31]}  Nac5 {[%clk 0:02:27]} 32. Rc7 {[%clk 0:00:16]}  Bxe5 {[%clk 0:02:16]} 33. fxe5 {[%clk 0:00:16]}  Rf2 {[%clk 0:02:17]} 34. Qe3 {[%clk 0:00:11]}  Rxd2 {[%clk 0:02:13]} 35. Rxc5 {[%clk 0:00:10]}  Rb8 {[%clk 0:02:10]} 36. O-O {[%clk 0:00:06]}  Rf2 {[%clk 0:00:49]} 37. Rxf2 {[%clk 0:00:05]}  Rb1+ {[%clk 0:00:48]} 38. Rf1 {[%clk 0:00:05]}  Rxf1+ {[%clk 0:00:48]} 39. Kxf1 {[%clk 0:00:06]}  Nxc5 {[%clk 0:00:47]} 40. Qxh6 {[%clk 0:00:05]}  Qf7+ {[%clk 0:00:47]} 41. Kg1 {[%clk 0:00:05]}  Ne4 {[%clk 0:00:47]} 42. Nf3 {[%clk 0:00:05]}  Qf5 {[%clk 0:00:44]} 43. h3 {[%clk 0:00:04]}  d4 {[%clk 0:00:44]} 44. e6 {[%clk 0:00:01]}  d3 {[%clk 0:00:44]} 45. Qh5 {[%clk 0:00:01]} 0-1


[Site "https://www.chess.com"]

[Event "Late Titled Tuesday Blitz February 8 2022"]
[White "Kubatko, Ivan"]
[Black "Mustafayev, Farid"]
[WhiteFideId "24111473"]
[BlackFideId "13408771"]
[WhiteElo "2285"]
[BlackElo "2129"]
[Result "0-1"]
[Round "04"]
[TimeControl "180+1"]
[Date "2022.02.09"]
[WhiteClock "0:00:20"]
[BlackClock "0:01:34"]

1. e4 {[%clk 0:03:00]}  Nf6 {[%clk 0:02:58]} 2. e5 {[%clk 0:03:00]}  Nd5 {[%clk 0:02:59]} 3. c4 {[%clk 0:03:00]}  Nb6 {[%clk 0:02:59]} 4. d4 {[%clk 0:02:59]}  d6 {[%clk 0:02:59]} 5. exd6 {[%clk 0:02:59]}  cxd6 {[%clk 0:02:59]} 6. Nc3 {[%clk 0:02:59]}  g6 {[%clk 0:02:59]} 7. Be2 {[%clk 0:02:59]}  Bg7 {[%clk 0:02:59]} 8. Nf3 {[%clk 0:02:58]}  O-O {[%clk 0:02:59]} 9. O-O {[%clk 0:02:57]}  Nc6 {[%clk 0:02:58]} 10. d5 {[%clk 0:02:52]}  Na5 {[%clk 0:02:58]} 11. Nd2 {[%clk 0:02:43]}  Bf5 {[%clk 0:02:56]} 12. Na4 {[%clk 0:01:39]}  Rc8 {[%clk 0:02:49]} 13. Nxb6 {[%clk 0:01:35]}  Qxb6 {[%clk 0:02:50]} 14. Qa4 {[%clk 0:01:36]}  Qc7 {[%clk 0:02:16]} 15. g4 {[%clk 0:01:17]}  Bd7 {[%clk 0:02:16]} 16. Qb4 {[%clk 0:01:15]}  b6 {[%clk 0:02:11]} 17. h3 {[%clk 0:01:10]}  Rfe8 {[%clk 0:02:06]} 18. Rb1 {[%clk 0:00:54]}  e6 {[%clk 0:02:05]} 19. Bf3 {[%clk 0:00:53]}  e5 {[%clk 0:02:03]} 20. b3 {[%clk 0:00:51]}  f5 {[%clk 0:01:54]} 21. Ba3 {[%clk 0:00:47]}  Nb7 {[%clk 0:01:50]} 22. Rfe1 {[%clk 0:00:46]}  a5 {[%clk 0:01:48]} 23. Qc3 {[%clk 0:00:38]}  e4 {[%clk 0:01:48]} 24. Qc2 {[%clk 0:00:32]}  exf3 {[%clk 0:01:48]} 25. Nxf3 {[%clk 0:00:30]}  Nc5 {[%clk 0:01:48]} 26. Bb2 {[%clk 0:00:23]}  Bxb2 {[%clk 0:01:36]} 27. Qxb2 {[%clk 0:00:24]}  Ne4 {[%clk 0:01:36]} 28. Qd4 {[%clk 0:00:20]}  Qc5 {[%clk 0:01:34]} 29. Qxc5 {[%clk 0:00:20]}  bxc5 {[%clk 0:01:34]} 0-1


[Site "https://www.chess.com"]

[Event "Late Titled Tuesday Blitz February 8 2022"]
[White "Laith, Kasib"]
[Black "Meduri, Aakaash"]
[WhiteFideId "4801059"]
[BlackFideId "2032252"]
[WhiteElo "1982"]
[BlackElo "2047"]
[Result "0-1"]
[Round "04"]
[TimeControl "180+1"]
[Date "2022.02.09"]
[WhiteClock "0:00:50"]
[BlackClock "0:01:46"]

1. Nf3 {[%clk 0:03:00]}  d5 {[%clk 0:02:59]} 2. g3 {[%clk 0:03:00]}  c5 {[%clk 0:02:59]} 3. Bg2 {[%clk 0:03:00]}  g6 {[%clk 0:02:59]} 4. O-O {[%clk 0:03:00]}  Bg7 {[%clk 0:03:00]} 5. d3 {[%clk 0:03:00]}  Nf6 {[%clk 0:03:00]} 6. Nbd2 {[%clk 0:03:00]}  O-O {[%clk 0:03:00]} 7. e4 {[%clk 0:03:00]}  Nc6 {[%clk 0:03:00]} 8. Re1 {[%clk 0:02:59]}  Re8 {[%clk 0:02:58]} 9. c3 {[%clk 0:02:44]}  dxe4 {[%clk 0:02:57]} 10. dxe4 {[%clk 0:02:44]}  e5 {[%clk 0:02:53]} 11. Qc2 {[%clk 0:02:38]}  Be6 {[%clk 0:02:53]} 12. Ng5 {[%clk 0:02:33]}  Qc7 {[%clk 0:02:49]} 13. Nxe6 {[%clk 0:02:32]}  Rxe6 {[%clk 0:02:50]} 14. Nc4 {[%clk 0:02:31]}  b5 {[%clk 0:02:46]} 15. Ne3 {[%clk 0:02:30]}  Ne7 {[%clk 0:02:40]} 16. Nd5 {[%clk 0:02:23]}  Nfxd5 {[%clk 0:02:40]} 17. exd5 {[%clk 0:02:23]}  Rd6 {[%clk 0:02:40]} 18. f4 {[%clk 0:02:11]}  f6 {[%clk 0:02:26]} 19. c4 {[%clk 0:02:04]}  bxc4 {[%clk 0:02:18]} 20. Qxc4 {[%clk 0:02:03]}  Rad8 {[%clk 0:02:15]} 21. fxe5 {[%clk 0:01:59]}  fxe5 {[%clk 0:02:16]} 22. Bg5 {[%clk 0:01:58]}  h6 {[%clk 0:02:11]} 23. Bxe7 {[%clk 0:01:49]}  Qxe7 {[%clk 0:02:12]} 24. Qxc5 {[%clk 0:01:49]}  R8d7 {[%clk 0:02:13]} 25. Rad1 {[%clk 0:01:36]}  Rc7 {[%clk 0:02:12]} 26. Qf2 {[%clk 0:01:28]}  Kh7 {[%clk 0:02:03]} 27. Be4 {[%clk 0:01:27]}  Qe8 {[%clk 0:01:58]} 28. Rf1 {[%clk 0:01:25]}  Qa4 {[%clk 0:01:51]} 29. b3 {[%clk 0:01:24]}  Qxe4 {[%clk 0:01:50]} 30. Rfe1 {[%clk 0:00:57]}  Qf5 {[%clk 0:01:49]} 31. Qd2 {[%clk 0:00:50]}  Rc2 {[%clk 0:01:46]} 0-1


[Site "https://www.chess.com"]

[Event "Late Titled Tuesday Blitz February 8 2022"]
[White "Lopez Perdomo, Juan David"]
[Black "Todorovic, Bojan"]
[WhiteFideId "4405137"]
[BlackFideId "917087"]
[WhiteElo "1997"]
[BlackElo "2266"]
[Result "1-0"]
[Round "04"]
[TimeControl "180+1"]
[Date "2022.02.09"]
[WhiteClock "0:00:12"]
[BlackClock "0:00:08"]

1. e4 {[%clk 0:03:00]}  c6 {[%clk 0:03:00]} 2. d4 {[%clk 0:03:00]}  d5 {[%clk 0:03:00]} 3. Nc3 {[%clk 0:03:00]}  dxe4 {[%clk 0:03:00]} 4. Nxe4 {[%clk 0:03:01]}  Bf5 {[%clk 0:03:00]} 5. Ng3 {[%clk 0:03:01]}  Bg6 {[%clk 0:03:01]} 6. Nf3 {[%clk 0:03:02]}  Nd7 {[%clk 0:03:00]} 7. Bd3 {[%clk 0:03:03]}  Ngf6 {[%clk 0:03:00]} 8. Bf4 {[%clk 0:02:58]}  e6 {[%clk 0:02:59]} 9. O-O {[%clk 0:02:55]}  Be7 {[%clk 0:02:52]} 10. Qe2 {[%clk 0:02:55]}  O-O {[%clk 0:02:50]} 11. Bxg6 {[%clk 0:02:51]}  hxg6 {[%clk 0:02:49]} 12. h4 {[%clk 0:02:52]}  Nd5 {[%clk 0:02:45]} 13. Bg5 {[%clk 0:02:50]}  Bxg5 {[%clk 0:02:42]} 14. Nxg5 {[%clk 0:02:50]}  Qf6 {[%clk 0:02:35]} 15. Rad1 {[%clk 0:02:43]}  Rae8 {[%clk 0:02:32]} 16. Qg4 {[%clk 0:02:34]}  Qf4 {[%clk 0:02:22]} 17. Qh3 {[%clk 0:02:23]}  N5f6 {[%clk 0:02:15]} 18. Rd3 {[%clk 0:02:18]}  e5 {[%clk 0:02:07]} 19. Rb3 {[%clk 0:01:10]}  exd4 {[%clk 0:02:00]} 20. Rxb7 {[%clk 0:01:09]}  Ne5 {[%clk 0:02:00]} 21. Ne2 {[%clk 0:01:04]}  Qd2 {[%clk 0:01:49]} 22. Nc1 {[%clk 0:00:41]}  Neg4 {[%clk 0:01:46]} 23. Qd3 {[%clk 0:00:36]}  Qxd3 {[%clk 0:01:06]} 24. Nxd3 {[%clk 0:00:37]}  Re2 {[%clk 0:01:03]} 25. Rc1 {[%clk 0:00:33]}  c5 {[%clk 0:00:37]} 26. Nxc5 {[%clk 0:00:31]}  Rc8 {[%clk 0:00:35]} 27. Nd3 {[%clk 0:00:17]}  Nd5 {[%clk 0:00:20]} 28. Rxf7 {[%clk 0:00:13]}  Rexc2 {[%clk 0:00:18]} 29. Rxc2 {[%clk 0:00:14]}  Rxc2 {[%clk 0:00:18]} 30. f3 {[%clk 0:00:15]}  Ngf6 {[%clk 0:00:17]} 31. Rxa7 {[%clk 0:00:14]}  Rc8 {[%clk 0:00:14]} 32. b4 {[%clk 0:00:12]}  Kf8 {[%clk 0:00:12]} 33. b5 {[%clk 0:00:13]}  Rb8 {[%clk 0:00:11]} 34. a4 {[%clk 0:00:13]}  Nc3 {[%clk 0:00:10]} 35. Ne6+ {[%clk 0:00:11]}  Ke8 {[%clk 0:00:10]} 36. Nxd4 {[%clk 0:00:12]}  Ncd5 {[%clk 0:00:08]} 1-0


[Site "https://www.chess.com"]